{"text_format":"1","workbook":"xlsx","n_sheets":4,"sheets":["Sheet1 (2)","Sheet1","Sheet2","Sheet3"],"not_rendered":{"charts":0,"images":0,"macros":1,"external_links":0,"defined_names":0,"comments":0,"pivot_tables":0},"unopened":[],"bounds":{"document_bytes":16777216,"sheet_cells":100000,"rows_first":2000,"rows_last":500,"rows_between":2000,"halvings":0,"cell_chars":16384,"cell_head_chars":4096},"cells_cut":0,"cells_raw":0,"read":"whole","date_system":"1900"}

{"sheet":"Sheet1 (2)","index":0,"n_rows":21,"n_cols":9,"rows_kept":21,"cut":false,"hidden":false,"merged":[]}
["List need to look",null,null,null,"to check in",null,"Result",null,"Result"]
[101,null,null,null,"ABCD-122/101",null,"Yes"]
[102,null,null,null,"ABCD-123/134",null,"NO"]
[103,null,null,null,"ABCD-124/102",null,"YES"]
[104,null,null,null,"ABCD-102/103",null,"YES"]
[105,null,null,null,"ABCD-126/120",null,"YES"]
[106,null,null,null,"ABCD-101/109",null,"YES"]
[107,null,null,null,"ABCD-122/101",null,"YES"]
[122,null,null,null,"ABCD-122/101",null,"YES"]
[109,null,null,null,"ABCD-123/134",null,"NO"]
[110,null,null,null,"ABCD-124/102",null,"YES"]
[111,null,null,null,"ABCD-102/103",null,"YES"]
[120,null,null,null,"ABCD-126/120"]
[113,null,null,null,"ABCD-122/101"]
[114,null,null,null,"ABCD-123/134"]
[115,null,null,null,"ABCD-122/101"]
[116,null,null,null,"ABCD-123/134"]
[117,null,null,null,"ABCD-124/102"]
[118,null,null,null,"ABCD-102/103"]
[119,null,null,null,"ABCD-126/120"]
[120,null,null,null,"ABCD-101/109"]

{"sheet":"Sheet1","index":1,"n_rows":21,"n_cols":8,"rows_kept":21,"cut":false,"hidden":false,"merged":[]}
["List need to look",null,null,null,"to check in",null,"Result","Res"]
[101,null,null,null,"ABCD-122/101",null,"Yes",{"$f":"IF(ISNUMBER(FIND(A2,E2)),\"YES\",\"NO\")","v":"YES"}]
[102,null,null,null,"ABCD-123/134",null,"NO",{"$f":"IF(ISNUMBER(FIND(A3,E3)),\"YES\",\"NO\")","v":"NO"}]
[103,null,null,null,"ABCD-124/102",null,"YES","NO"]
[104,null,null,null,"ABCD-102/103",null,"YES","NO"]
[105,null,null,null,"ABCD-126/120",null,"YES","NO"]
[106,null,null,null,"ABCD-101/109",null,"YES","NO"]
[107,null,null,null,"ABCD-122/101",null,"YES","NO"]
[122,null,null,null,"ABCD-122/101",null,"YES","YES"]
[109,null,null,null,"ABCD-123/134",null,"NO","NO"]
[110,null,null,null,"ABCD-124/102",null,"YES","NO"]
[111,null,null,null,"ABCD-102/103",null,"YES","NO"]
[120,null,null,null,"ABCD-126/120",null,null,"YES"]
[113,null,null,null,"ABCD-122/101",null,null,"NO"]
[114,null,null,null,"ABCD-123/134",null,null,"NO"]
[115,null,null,null,"ABCD-122/101",null,null,"NO"]
[116,null,null,null,"ABCD-123/134",null,null,"NO"]
[117,null,null,null,"ABCD-124/102",null,null,"NO"]
[118,null,null,null,"ABCD-102/103",null,null,"NO"]
[119,null,null,null,"ABCD-126/120",null,null,"NO"]
[120,null,null,null,"ABCD-101/109",null,null,"NO"]

{"sheet":"Sheet2","index":2,"n_rows":0,"n_cols":0,"rows_kept":0,"cut":false,"hidden":false,"merged":[]}

{"sheet":"Sheet3","index":3,"n_rows":0,"n_cols":0,"rows_kept":0,"cut":false,"hidden":false,"merged":[]}